fUSD/lending_fUSD_20251118
["ID","MTS","AMOUNT","RATE_DAILY","PERIOD"]
[394324857,1763452232789,-3725.73754399,0.00016581,2]
[394324858,1763452232803,-2800.0,0.000166,6]
[394324859,1763452232818,-500.0,0.00016621,2]
[394324860,1763452232830,-500.0,0.00016621,2]
[394324861,1763452232842,-504.53186141,0.00016621,2]
[394324862,1763452232852,-500.0,0.00016621,2]
[394324863,1763452232863,-500.0,0.00016621,2]
[394324864,1763452232874,-500.0,0.00016621,2]
[394324865,1763452232885,-500.0,0.00016621,2]
[394324866,1763452232901,-500.0,0.00016621,2]
[394324867,1763452232915,-500.0,0.00016621,2]
[394324868,1763452232926,-500.0,0.00016621,2]
[394324869,1763452232937,-500.0,0.00016621,2]
[394324870,1763452232947,-500.0,0.00016621,2]
[394324871,1763452232957,-500.0,0.00016621,2]
[394324872,1763452232969,-500.0,0.00016621,2]
[394324873,1763452232980,-625.92607585,0.00016621,2]
[394324874,1763452232990,-501.0,0.00016621,2]
[394324875,1763452233004,-200.0,0.00016621,2]
[394324876,1763452233014,-3725.73754399,0.00016634,2]
[394324877,1763452233024,-128620.1863141,0.0001664,2]
[394324878,1763452233035,-9790.01930327,0.00016641,2]
[394324881,1763452237597,-691.39765001,0.00016641,2]
[394324884,1763452239804,-17124.1315376,0.00016641,2]
[394324885,1763452239814,-200.0,0.00016646,2]
[394324886,1763452239824,-3850.0737514,0.00016671,2]
[394324887,1763452239834,-6816.0,0.00016673,2]
[394324888,1763452239844,-1723.26,0.00016673,2]
[394324889,1763452239853,-500.0,0.00016673,2]
[394324890,1763452239863,-500.0,0.00016673,2]
[394324891,1763452239874,-500.0,0.00016673,2]
[394324892,1763452239883,-500.0,0.00016673,2]
[394324893,1763452239894,-501.55635846,0.00016673,2]
[394324894,1763452239905,-500.0,0.00016673,2]
[394324895,1763452239914,-500.0,0.00016673,2]
[394324896,1763452239924,-500.60732053,0.00016673,2]
[394324897,1763452239934,-200.55030543,0.00016673,2]
[394324898,1763452239943,-504.41947256,0.00016673,2]
[394324899,1763452239953,-507.32409942,0.00016673,2]
[394324900,1763452239962,-500.0,0.00016673,2]
[394324901,1763452239972,-361.68421052,0.00016673,2]
[394324902,1763452239982,-500.0,0.00016673,2]
[394324903,1763452239991,-194.43527084,0.00016673,2]
[394324904,1763452240002,-500.0,0.00016673,2]
[394324905,1763452240011,-500.0,0.00016673,2]
[394324906,1763452240022,-500.0,0.00016673,2]
[394324907,1763452240034,-349.88633371,0.00016673,2]
[394324908,1763452240045,-315.37,0.00016678,2]
[394324909,1763452240057,-3725.73754399,0.00016688,2]
[394324910,1763452240068,-150.99,0.0001669,2]
[394324911,1763452240080,-509.56,0.0001669,2]
[394324912,1763452240091,-2949.33,0.0001669,2]
[394324913,1763452240101,-324.37,0.0001669,2]
[394324914,1763452240111,-153.19,0.0001669,2]
[394324915,1763452240122,-9999.99,0.0001669,2]
[394324916,1763452240132,-9999.99,0.0001669,2]
[394324917,1763452240142,-4920.39,0.0001669,2]
[394324918,1763452240153,-150.99,0.0001669,2]
[394324919,1763452240163,-495.3,0.0001669,2]
[394324920,1763452240173,-555.91,0.0001669,2]
[394324921,1763452240182,-7320.49,0.0001669,2]
[394324922,1763452240192,-299.99,0.0001669,4]
[394324923,1763452240201,-7675.74,0.0001669,2]
[394324924,1763452240211,-3800.0,0.000167,6]
[394324925,1763452240220,-2412.10714,0.0001671,2]
[394324926,1763452240229,-2099.10903782,0.00016721,2]
[394324927,1763452240238,-3725.73754399,0.00016741,2]
[394324928,1763452240248,-500.0,0.00016749,2]
[394324929,1763452240257,-500.0,0.00016749,2]
[394324930,1763452240268,-500.0,0.00016749,2]
[394324931,1763452240278,-500.0,0.00016749,2]
[394324932,1763452240287,-268.79073478,0.00016749,2]
[394324933,1763452240297,-5192.85957842,0.0001675,2]
[394324934,1763452240308,-200.0,0.00016755,2]
[394324935,1763452240317,-2836.03851344,0.00016774,2]
[394324936,1763452240327,-500.0,0.00016775,2]
[394324937,1763452240337,-500.0,0.00016775,2]
[394324938,1763452240347,-500.0,0.00016775,2]
[394324939,1763452240356,-500.0,0.00016775,2]
[394324940,1763452240366,-500.0,0.00016775,2]
[394324941,1763452240375,-577.50398757,0.00016775,2]
[394324942,1763452240384,-510.25527032,0.00016775,2]
[394324943,1763452240395,-5128.414,0.00016776,2]
[394324944,1763452240404,-1462.6229551,0.00016777,2]
[394324945,1763452240413,-5632.0,0.0001678,2]
[394324946,1763452240423,-9778.2939715,0.0001678,2]
[394324947,1763452240436,-5641.88378564,0.0001678,2]
[394324948,1763452240447,-311.5574026,0.0001678,2]
[394324950,1763452240490,-554.579514,0.0001678,2]
[394324952,1763452240502,-279.49690001,0.0001678,2]
[394324954,1763452240513,-344.03585596,0.0001678,2]
[394325044,1763452242716,-497.37398494,0.0001678,2]
[394325045,1763452242766,-676.2513546,0.0001678,2]
[394325046,1763452243137,-6552.55370941,0.0001678,2]
[394325048,1763452243148,-151.0,0.0001678,2]
[394325050,1763452243158,-2412.10714,0.0001678,2]
[394325052,1763452243167,-200.0,0.00016787,2]
[394325054,1763452243177,-3725.73754399,0.00016794,2]
[394325056,1763452243186,-500.0,0.00016795,2]
[394325058,1763452243196,-500.0,0.00016795,2]
[394325060,1763452243205,-626.0,0.00016795,2]
[394325062,1763452243215,-500.0,0.00016795,2]
[394325064,1763452243224,-500.0,0.00016795,2]
[394325066,1763452243233,-500.0,0.00016795,2]
[394325068,1763452243242,-150.0,0.00016795,2]
[394325069,1763452243252,-1000.0,0.000168,2]
[394325071,1763452243261,-4800.0,0.000168,6]
[394325073,1763452243276,-2836.03851344,0.00016816,2]
[394325075,1763452243285,-2412.10714,0.0001684,2]
[394325076,1763452243295,-3725.73754399,0.00016847,2]
[394325077,1763452243304,-2836.03851344,0.00016858,2]
[394325078,1763452243314,-200.0,0.00016863,2]
[394325079,1763452243323,-150.0,0.00016863,2]
[394325080,1763452243332,-2679.1774,0.00016877,2]
[394325081,1763452243343,-500.0,0.00016899,2]
[394325082,1763452243352,-500.0,0.00016899,2]
[394325083,1763452243361,-500.0,0.00016899,2]
[394325084,1763452243370,-1490.18,0.00016899,2]
[394325085,1763452243379,-150.0,0.00016899,2]
[394325086,1763452243387,-150.0,0.00016899,2]
[394325087,1763452243397,-150.0,0.00016899,2]
[394325088,1763452243406,-165.15306761,0.00016899,2]
[394325089,1763452243416,-500.0,0.00016899,2]
[394325090,1763452243425,-150.0,0.00016899,2]
[394325091,1763452243434,-500.0,0.00016899,2]
[394325092,1763452243443,-900.0,0.000169,6]
[394325093,1763452243452,-596.84133589,0.000169,2]
[394325094,1763452243462,-2186.32528223,0.000169,2]
[394325114,1763452250114,-197.25141777,0.000169,2]
[394325115,1763452250123,-165.69252864,0.000169,2]
[394325116,1763452250133,-151.0,0.000169,2]
[394325117,1763452250142,-151.0,0.000169,2]
[394325118,1763452250151,-152.024064,0.000169,2]
[394325119,1763452250160,-151.0,0.000169,2]
[394325120,1763452250169,-151.0,0.000169,2]
[394325121,1763452250178,-2836.03851344,0.000169,2]
[394325122,1763452250187,-151.0,0.000169,2]
[394325123,1763452250196,-151.0,0.000169,2]
[394325124,1763452250204,-151.0,0.000169,2]
[394325125,1763452250214,-151.744,0.000169,2]
[394325126,1763452250223,-239.7980609,0.000169,2]
[394325127,1763452250232,-309.4226135,0.000169,2]
[394325128,1763452250242,-2099.10903782,0.000169,2]
[394325129,1763452250251,-3725.73754399,0.000169,2]
[394325130,1763452250260,-261.6000528,0.000169,2]
[394325131,1763452250272,-281.21449308,0.000169,2]
[394325132,1763452250281,-500.0,0.000169,2]
[394325133,1763452250290,-500.0,0.000169,2]
[394325134,1763452250299,-500.0,0.000169,2]
[394325135,1763452250308,-892.46571673,0.00016921,2]
[394325136,1763452250318,-166.66,0.00016952,2]
[394325137,1763452250327,-200.0,0.00016955,2]
[394325138,1763452250336,-615.0,0.00016959,2]
[394325139,1763452250346,-2412.10714,0.0001696,2]
[394325140,1763452250355,-502.17705396,0.00016973,2]
[394325141,1763452250364,-500.79084728,0.00016973,2]
[394325142,1763452250374,-501.48649795,0.00016973,2]
[394325143,1763452250383,-500.9697851,0.00016973,2]
[394325144,1763452250392,-500.0,0.00016973,2]
[394325145,1763452250403,-500.0,0.00016973,2]
[394325146,1763452250412,-161.68469529,0.00016973,2]
[394325147,1763452250422,-500.0,0.00016973,2]
[394325148,1763452250431,-500.0,0.00016973,2]
[394325149,1763452250440,-500.0,0.00016973,2]
[394325150,1763452250449,-500.0,0.00016973,2]
[394325151,1763452250458,-500.0,0.00016973,2]
[394325152,1763452250467,-500.40037271,0.00016973,2]
[394325153,1763452250476,-594.14905244,0.00016973,2]
[394325154,1763452250485,-500.0,0.00016973,2]
[394325155,1763452250495,-160.8130814,0.00016973,2]
[394325156,1763452250504,-504.96143204,0.00016973,2]
[394325157,1763452250513,-500.0,0.00016973,2]
[394325158,1763452250523,-503.73371905,0.00016973,2]
[394325159,1763452250533,-480.67462218,0.00016973,2]
[394325160,1763452250543,-430.85023919,0.00016973,2]
[394325161,1763452250554,-73.18764244,0.00016973,2]
[394325162,1763452250563,-513.11252217,0.00016973,2]
[394325163,1763452250572,-500.0,0.00016973,2]
[394325164,1763452250581,-205.60198517,0.00016973,2]
[394325165,1763452250590,-500.0,0.00016973,2]
[394325166,1763452250599,-500.0,0.00016973,2]
[394325167,1763452250608,-500.0,0.00016973,2]
[394325168,1763452250617,-500.0,0.00016973,2]
[394325169,1763452250627,-343.01768595,0.00016973,2]
[394325170,1763452250636,-503.71963706,0.00016973,2]
[394325171,1763452250645,-503.99921978,0.00016973,2]
[394325172,1763452250655,-160.27826402,0.00016973,2]
[394325173,1763452250665,-462.44604317,0.00016973,2]
[394325174,1763452250677,-37.55395683,0.00016973,2]
[394325175,1763452250686,-536.56890854,0.00016973,2]
[394325176,1763452250696,-164.00205091,0.00016973,2]
[394325177,1763452250705,-500.0,0.00016973,2]
[394325178,1763452250715,-500.0,0.00016973,2]
[394325179,1763452250724,-213.98865376,0.00016973,2]
[394325180,1763452250746,-286.01134624,0.00016973,2]
[394325181,1763452250756,-151.0,0.00016973,2]
[394325182,1763452250766,-151.0,0.00016973,2]
[394325183,1763452250775,-46.84887976,0.00016973,2]
[394325184,1763452250786,-104.15112024,0.00016973,2]
[394325185,1763452250796,-151.0,0.00016973,2]
[394325186,1763452250805,-295.37341803,0.00016976,2]
[394325187,1763452250815,-500.0,0.00016986,2]
[394325188,1763452250824,-2500.23081112,0.00016986,2]
[394325189,1763452255416,307.505176,0.00016522,2]
[394325191,1763452273171,500.0,0.00041691,30]
[394325192,1763452273776,500.0,0.00041691,30]
[394325193,1763452274401,500.0,0.00041691,30]
[394325194,1763452275052,500.0,0.00041691,30]
[394325195,1763452275094,9692.504824,0.00016422,2]
[394325196,1763452275127,10000.01,0.00016422,2]
[394325197,1763452275160,10000.01,0.00016422,2]
[394325198,1763452275194,10000.01,0.00016422,2]
[394325199,1763452275227,10000.01,0.00016422,2]
[394325200,1763452275257,10000.01,0.00016422,2]
[394325201,1763452275287,10000.01,0.00016422,2]
[394325202,1763452275317,10000.01,0.00016422,2]
[394325203,1763452275349,10000.01,0.00016422,2]
[394325204,1763452275381,10000.01,0.00016422,2]
[394325205,1763452275689,500.0,0.00041691,30]
[394325206,1763452276071,-189.2663916,0.00016422,2]
[394325207,1763452276346,500.0,0.00041691,30]
[394325208,1763452276965,500.0,0.00041691,30]
[394325209,1763452277867,-189.6397139,0.00016422,2]
[394325210,1763452280359,-198.12427085,0.00016422,2]
[394325211,1763452283126,-206.995667,0.00016422,2]
[394325215,1763452285957,-169.37976718,0.00016422,2]
[394325216,1763452287964,-212.75515012,0.00016422,2]
[394325217,1763452290124,-231.17758378,0.00016422,2]
[394325218,1763452291906,-180.90118199,0.00016422,2]
[394325219,1763452293649,-441.62910934,0.00016422,2]
[394325220,1763452300903,-235.7783164,0.00016422,2]
[394325221,1763452304926,-217.448116,0.00016422,2]
[394325222,1763452307070,-263.98456121,0.00016422,2]
[394325223,1763452312289,-215.30046491,0.00016422,2]
[394325224,1763452314538,-300.0,0.00016422,2]
[394325225,1763452316172,-358.78570957,0.00016422,2]
[394325226,1763452319635,-167.82725145,0.00016422,2]
[394325227,1763452322507,-268.32187786,0.00016422,2]
[394325228,1763452324290,-201.22587266,0.00016422,2]
[394325229,1763452327488,-353.89975122,0.00016422,2]
[394325230,1763452327914,202.87721102,0.00041691,30]
[394325231,1763452333114,200.0,0.00041691,30]
[394325232,1763452369060,200.0,0.00015948,2]
[394325233,1763452380376,177.31316547,0.00016322,2]
[394325234,1763452381766,300.0,0.00016421,2]
[394325235,1763452393683,268.44026708,0.00041691,30]
[394325236,1763452399150,500.0,0.00015943,2]
[394325240,1763452414372,152.07497253,0.00016322,2]
[394325241,1763452426192,500.0,0.00016421,2]
[394325242,1763452426242,633.88056451,0.00016421,2]
[394325243,1763452441825,527.0,0.00016421,2]
[394325245,1763452447642,200.0,0.00015916,2]
[394325246,1763452450452,157.55973292,0.00041691,30]
[394325247,1763452501435,300.0,0.00016421,2]
[394325248,1763452501559,300.0,0.00016421,2]
[394325249,1763452502648,1200.0,0.00016421,2]
[394325251,1763452561698,300.0,0.00016421,2]
[394325252,1763452564453,1500.0,0.00015916,2]
[394325253,1763452632908,151.0,0.00016422,2]
[394325254,1763452633517,151.0,0.00016422,2]
[394325255,1763452634176,151.0,0.00016422,2]
[394325256,1763452634808,151.0,0.00016422,2]
[394325257,1763452635413,151.0,0.00016422,2]
[394325258,1763452636052,151.0,0.00016422,2]
[394325259,1763452636670,151.0,0.00016422,2]
[394325260,1763452637433,151.0,0.00016422,2]
[394325261,1763452637906,151.0,0.00016422,2]
[394325262,1763452638632,151.0,0.00016422,2]
[394325263,1763452639192,151.0,0.00016422,2]
[394325264,1763452639797,151.0,0.00016422,2]
[394325265,1763452640431,151.0,0.00016422,2]
[394325266,1763452641442,-151.0,0.00016422,2]
[394325267,1763452641635,-6180.54675581,0.00016422,2]
[394325268,1763452641792,-10000.01,0.00016422,2]
[394325269,1763452641928,-10000.01,0.00016422,2]
[394325270,1763452642256,-151.0,0.00016422,2]
[394325271,1763452642301,-9698.01,0.00016422,2]
[394325272,1763452642397,-10000.01,0.00016422,2]
[394325273,1763452642516,-10000.01,0.00016422,2]
[394325274,1763452642653,-10000.01,0.00016422,2]
[394325275,1763452642813,-151.0,0.00016422,2]
[394325276,1763452642865,-9698.01,0.00016422,2]
[394325277,1763452642957,-10000.01,0.00016422,2]
[394325278,1763452644230,-151.0,0.00016422,2]
[394325279,1763452644267,-151.0,0.00016422,2]
[394325280,1763452644339,-9396.01,0.00016422,2]
[394325281,1763452644371,-10000.01,0.00016422,2]
[394325282,1763452647755,-169.74489308,0.00016422,2]
[394325283,1763452651502,2500.0,0.00016322,2]
[394325284,1763452660636,155.14901983,0.00016322,2]
[394325285,1763452661604,438.5124904,0.00016322,2]
[394325286,1763452662345,-6906.34848977,0.00016422,2]
[394325287,1763452662472,-10000.01,0.00016422,2]
[394325288,1763452662750,-10000.01,0.00016422,2]
[394325289,1763452662880,-10000.01,0.00016422,2]
[394325290,1763452663005,-10000.01,0.00016422,2]
[394325291,1763452663131,-10000.01,0.00016422,2]
[394325292,1763452663267,-10000.01,0.00016422,2]
[394325293,1763452663381,-10000.01,0.00016422,2]
[394325294,1763452663583,-10000.01,0.00016422,2]
[394325295,1763452663710,-10000.01,0.00016422,2]
[394325296,1763452666606,438.51249038,0.00016386,2]
[394325297,1763452677844,1292.477325,0.00016322,2]
[394325298,1763452682275,300.0,0.00016421,2]
[394325299,1763452682706,1292.47732491,0.00016386,2]
[394325300,1763452699661,152.07497253,0.00016322,2]
[394325301,1763452752169,150.0,0.00015901,2]
[394325302,1763452765920,243.73769331,0.00016421,2]
[394325303,1763452781331,2841.73,0.00015885,2]
[394325304,1763452801454,300.0,0.00016421,2]
[394325305,1763452801556,1200.0,0.00016421,2]
[394325306,1763452802335,550.0,0.00016421,2]
[394325307,1763452821191,1239.00019387,0.00016322,2]
[394325308,1763452821221,1260.99980613,0.00016322,2]
[394325309,1763452829933,500.0,0.00016421,2]
[394325310,1763452844218,3024.75,0.00015887,2]
[394325311,1763452845434,506.63991022,0.00016421,2]
[394325312,1763452861340,500.0,0.00016421,2]
[394325313,1763452871886,500.0,0.00016421,2]
[394325314,1763452873252,3306.88157969,0.00016421,2]
[394325318,1763452892842,400.73870396,0.00016421,2]
[394325319,1763452892873,99.26129604,0.00016421,2]
[394325322,1763452899521,581.9033831,0.00016421,2]
[394325323,1763452912382,500.0,0.00016421,2]
[394325324,1763452917849,500.0,0.00016421,2]
[394325325,1763452922398,300.0,0.00016421,2]
[394325326,1763452925461,500.0,0.00016421,2]
[394325327,1763452935449,500.0,0.00016421,2]
[394325328,1763452936395,150.0,0.00041684,30]
[394325329,1763452941273,155.14901978,0.00016322,2]
[394325330,1763452957132,500.0,0.00016421,2]
[394325331,1763452975401,154.97790013,0.00016322,2]
[394325332,1763452981328,300.0,0.00016421,2]
[394325333,1763452988963,500.0,0.00016421,2]
[394325334,1763452993164,2500.0,0.00016322,2]
[394325335,1763453020381,500.0,0.00016421,2]
[394325336,1763453041537,300.0,0.00016421,2]
[394325337,1763453058977,1033.98186,0.00016322,2]
[394325338,1763453063946,1033.98185992,0.00016386,2]
[394325339,1763453101341,40.75468103,0.00016421,2]
[394325340,1763453101366,1159.24531897,0.00016421,2]
[394325341,1763453101399,300.0,0.00016421,2]
[394325342,1763453109124,150.0,0.00015288,2]
[394325343,1763453109262,150.0,0.00015288,2]
[394325344,1763453112344,150.0,0.00015288,2]
[394325345,1763453128792,150.0,0.00015288,2]
[394325346,1763453162918,2500.0,0.00016322,2]
[394325347,1763453166942,350.80999234,0.00016322,2]
[394325348,1763453172987,350.8099923,0.00016386,2]
[394325349,1763453176497,2194.14515789,0.00016,2]
[394325350,1763453182344,500.0,0.00016421,2]
[394325351,1763453182408,500.0,0.00016421,2]
[394325352,1763453182454,500.0,0.00016421,2]
[394325353,1763453182511,446.14585315,0.00016421,2]
[394325354,1763453197294,299.67,0.00015877,2]
[394325355,1763453211343,155.14901978,0.00016322,2]
[394325356,1763453212941,144.03466557,0.00016421,2]
[394325357,1763453212975,355.96533443,0.00016421,2]
[394325358,1763453227628,500.0,0.00016421,2]
[394325363,1763453231164,202.31097649,0.00041686,30]
[394325364,1763453236288,151.0,0.00041686,30]
[394325365,1763453236889,151.0,0.00041686,30]
[394325366,1763453237544,151.0,0.00041686,30]
[394325367,1763453238512,151.0,0.00041686,30]
[394325368,1763453239135,151.0,0.00041686,30]
[394325369,1763453244817,500.0,0.00016421,2]
[394325370,1763453250350,154.97790011,0.00016322,2]
[394325371,1763453256462,200.0,0.000164,5]
[394325372,1763453258554,500.0,0.000165,6]
[394325373,1763453277154,500.0,0.00016421,2]
[394325374,1763453285377,500.0,0.00016421,2]
[394325375,1763453285585,166.68,0.00016323,2]
[394325376,1763453299098,7322.38676546,0.00016322,2]
[394325377,1763453299128,10000.01,0.00016322,2]
[394325378,1763453299159,10000.01,0.00016322,2]
[394325379,1763453299189,10000.01,0.00016322,2]
[394325380,1763453299221,10000.01,0.00016322,2]
[394325381,1763453299253,10000.01,0.00016322,2]
[394325382,1763453299285,10000.01,0.00016322,2]
[394325383,1763453299315,10000.01,0.00016322,2]
[394325384,1763453299348,10000.01,0.00016322,2]
[394325385,1763453299377,10000.01,0.00016322,2]
[394325386,1763453300569,-304.32788016,0.00016322,2]
[394325387,1763453316453,-303.46747674,0.00016322,2]
[394325388,1763453318421,-482.31472923,0.00016322,2]
[394325389,1763453320399,-156.66465127,0.00016322,2]
[394325390,1763453321876,-168.63131779,0.00016322,2]
[394325391,1763453327316,-266.99466597,0.00016322,2]
[394325392,1763453330177,-225.56233507,0.00016322,2]
[394325393,1763453335969,-183.82122545,0.00016322,2]
[394325394,1763453339227,-304.751249,0.00016322,2]
[394325395,1763453341049,-208.01099995,0.00016322,2]
[394325396,1763453341548,300.0,0.00016321,2]
[394325397,1763453342679,-157.97344633,0.00016322,2]
[394325398,1763453344250,-500.0,0.00016322,2]
[394325405,1763453347527,-200.60351421,0.00016322,2]
[394325407,1763453354131,-300.0,0.00016322,2]
[394325408,1763453356341,-1497.96895558,0.00016322,2]
[394325410,1763453358655,-155.565573,0.00016322,2]
[394325411,1763453360389,-240.95229451,0.00016322,2]
[394325412,1763453362339,-300.0,0.00016322,2]
[394325414,1763453366292,-289.86252415,0.00016322,2]
[394325421,1763453370987,-487.73271424,0.00016322,2]
[394325422,1763453374017,-280.2144,0.00016322,2]
[394325423,1763453378241,-175.53839842,0.00016322,2]
[394325424,1763453379100,236.84961033,0.00016321,2]
[394325425,1763453379158,500.0,0.00016321,2]
[394325426,1763453379846,500.0,0.00016321,2]
[394325427,1763453379901,500.0,0.00016321,2]
[394325428,1763453379955,500.0,0.00016321,2]
[394325429,1763453380008,500.0,0.00016321,2]
[394325430,1763453380077,500.0,0.00016321,2]
[394325431,1763453380126,500.0,0.00016321,2]
[394325432,1763453380173,625.98544724,0.00016321,2]
[394325433,1763453380402,-387.63683561,0.00016322,2]
[394325434,1763453382712,-194.15791756,0.00016322,2]
[394325435,1763453385027,-247.15896071,0.00016322,2]
[394325436,1763453386770,-375.45306717,0.00016322,2]
[394325437,1763453393644,-195.0,0.00016322,2]
[394325438,1763453395788,-249.50064024,0.00016322,2]
[394325439,1763453397826,-797.11568317,0.00016322,2]
[394325440,1763453399694,-380.67420293,0.00016322,2]
[394325441,1763453401470,-180.70034894,0.00016322,2]
[394325442,1763453401599,300.0,0.00016321,2]
[394325443,1763453401636,1200.0,0.00016321,2]
[394325444,1763453404100,-317.08175656,0.00016322,2]
[394325445,1763453404980,500.0,0.00016321,2]
[394325446,1763453407005,-156.96365983,0.00016322,2]
[394325447,1763453408853,-269.71035258,0.00016322,2]
[394325448,1763453411129,-169.32579707,0.00016322,2]
[394325449,1763453413186,-151.01349756,0.00016322,2]
[394325450,1763453416064,-435.72796336,0.00016322,2]
[394325451,1763453418368,-250.0,0.00016322,2]
[394325452,1763453422578,-336.12842337,0.00016322,2]
[394325453,1763453424534,-151.01353006,0.00016322,2]
[394325454,1763453426795,-237.49539685,0.00016322,2]
[394325455,1763453428469,-261.41590027,0.00016322,2]
[394325456,1763453431399,-195.0,0.00016322,2]
[394325472,1763453431736,-2277.56151524,0.00016322,2]
[394325474,1763453431747,-1751.45862173,0.00016322,2]
[394325482,1763453431827,-1203.00344246,0.00016322,2]
[394325483,1763453431838,-9515.46223823,0.00016322,2]
[394325484,1763453431909,-335.23016235,0.00016322,2]
[394325485,1763453431922,-277484.546057,0.00016322,2]
[394325486,1763453431933,-9740.76421181,0.00016322,2]
[394325487,1763453431973,-19000.41448966,0.00016322,2]
[394325488,1763453431984,-22723.17387132,0.00016322,2]
[394325489,1763453431996,-3882.26610192,0.00016322,2]
[394325629,1763453433749,-163.68527077,0.00016322,2]
[394325741,1763453437470,500.0,0.00016321,2]
[394325742,1763453437694,350.0,0.00016321,2]
[394325744,1763453437743,500.0,0.00016321,2]
[394325748,1763453437777,-172.86681784,0.00016322,2]
[394325761,1763453437897,-2083.34388636,0.00016322,2]
[394325764,1763453437908,-3357.83562371,0.00016322,2]
[394325766,1763453437919,-1360.25058712,0.00016322,2]
[394325789,1763453440446,-1.6e-07,0.00016322,2]
[394325790,1763453440459,-714.30435223,0.00016322,2]
[394325791,1763453440470,-2161.84006027,0.00016322,2]
[394325792,1763453440481,-30000.07283855,0.00016322,2]
[394325793,1763453440492,-1557.38467929,0.00016322,2]
[394325794,1763453440504,-909.41,0.00016322,2]
[394325795,1763453440515,-6251.59841178,0.00016322,2]
[394325796,1763453440531,-3637.48212977,0.00016322,2]
[394325797,1763453440572,827.18548799,0.00016222,2]
[394325799,1763453443108,-1438.49778415,0.00016322,2]
[394325800,1763453443120,-1277.36416683,0.00016322,2]
[394325801,1763453443131,-659.88249486,0.00016322,2]
[394325802,1763453443143,-1554.33753854,0.00016322,2]
[394325803,1763453443154,-1610.66177725,0.00016322,2]
[394325804,1763453443170,-903.09493862,0.00016322,2]
[394325805,1763453443181,-836.95558719,0.00016322,2]
[394325806,1763453443193,-646.53301504,0.00016322,2]
[394325807,1763453443204,-389.86973178,0.00016322,2]
[394325808,1763453443429,-305.43212075,0.00016322,2]
[394325809,1763453443505,-4117.99220929,0.00016322,2]
[394325865,1763453445197,827.18548793,0.00016297,2]
[394325868,1763453446126,-684.09876502,0.00016322,2]
[394325869,1763453446138,-3981.1915551,0.00016322,2]
[394325870,1763453446150,-1186.10579435,0.00016322,2]
[394325871,1763453446161,-976.51,0.00016322,2]
[394325878,1763453452571,332.80396651,0.00016222,2]
[394325879,1763453452597,83.73628349,0.00016222,2]
[394325880,1763453471763,500.0,0.00016321,2]
[394325881,1763453471992,500.0,0.00016321,2]
[394325882,1763453474091,151.0,0.00041686,30]
[394325883,1763453474742,151.0,0.00041686,30]
[394325884,1763453485511,150.0,0.00041686,30]
[394325885,1763453501740,172.85,0.00012601,2]
[394325887,1763453501943,172.85,0.00014701,2]
[394325888,1763453521897,150.0,0.00016321,2]
[394325889,1763453533875,153.0,0.00041686,30]
[394325890,1763453546994,500.0,0.00016321,2]
[394325891,1763453547040,500.0,0.00016321,2]
[394325892,1763453547096,350.0,0.00016321,2]
[394325893,1763453566484,1200.0,0.00016321,2]
[394325894,1763453596840,151.0,0.00016319,2]
[394325895,1763453602723,500.0,0.00016321,2]
[394325896,1763453602774,500.0,0.00016321,2]
[394325897,1763453602826,500.0,0.00016321,2]